fUSD/lending_fUSD_20240814
["ID","MTS","AMOUNT","RATE_DAILY","PERIOD"]
[334865398,1723612233183,-500.0,0.00015056,2]
[334865399,1723612233192,-500.0,0.00015056,2]
[334865400,1723612233202,-500.0,0.00015056,2]
[334865401,1723612233212,-500.0,0.00015056,2]
[334865402,1723612233221,-725.19,0.00015056,2]
[334865403,1723612233231,-544.04,0.00015056,2]
[334865404,1723612233241,-500.0,0.00015056,2]
[334865405,1723612233250,-539.8,0.00015056,2]
[334865406,1723612233260,-500.0,0.00015056,2]
[334865407,1723612233270,-500.0,0.00015056,2]
[334865408,1723612233279,-581.98,0.00015056,2]
[334865409,1723612233289,-500.0,0.00015056,2]
[334865410,1723612233298,-500.0,0.00015056,2]
[334865411,1723612233308,-500.0,0.00015056,2]
[334865412,1723612233318,-500.0,0.00015056,2]
[334865413,1723612233327,-500.0,0.00015056,2]
[334865414,1723612233336,-831.78,0.00015056,2]
[334865415,1723612233346,-500.0,0.00015056,2]
[334865416,1723612233355,-500.0,0.00015056,2]
[334865417,1723612233365,-691.81,0.00015056,2]
[334865418,1723612233374,-500.0,0.00015056,2]
[334865419,1723612233384,-500.0,0.00015056,2]
[334865420,1723612233394,-500.0,0.00015056,2]
[334865421,1723612233404,-500.0,0.00015056,2]
[334865422,1723612233414,-500.0,0.00015056,2]
[334865423,1723612233423,-500.0,0.00015056,2]
[334865424,1723612233433,-500.0,0.00015056,2]
[334865425,1723612233443,-695.9,0.00015056,2]
[334865426,1723612233452,-568.53,0.00015056,2]
[334865427,1723612233466,-546.08,0.00015056,2]
[334865428,1723612233476,-500.0,0.00015056,2]
[334865429,1723612233486,-500.0,0.00015056,2]
[334865430,1723612233496,-500.0,0.00015056,2]
[334865431,1723612233506,-500.0,0.00015056,2]
[334865432,1723612233516,-1118.07,0.00015056,2]
[334865433,1723612233525,-500.0,0.00015056,2]
[334865434,1723612233535,-500.0,0.00015056,2]
[334865435,1723612233545,-659.84,0.00015056,2]
[334865436,1723612233555,-641.15,0.00015056,2]
[334865437,1723612233565,-500.0,0.00015056,2]
[334865438,1723612233575,-500.0,0.00015056,2]
[334865439,1723612233584,-500.0,0.00015056,2]
[334865440,1723612233594,-500.0,0.00015056,2]
[334865441,1723612233605,-866.29,0.00015056,2]
[334865442,1723612233615,-1362.98,0.00015056,2]
[334865443,1723612233625,-670.08,0.00015056,2]
[334865444,1723612233634,-536.26,0.00015056,2]
[334865445,1723612233644,-500.0,0.00015056,2]
[334865446,1723612233654,-500.0,0.00015056,2]
[334865447,1723612233664,-729.98,0.00015056,2]
[334865448,1723612233673,-500.0,0.00015056,2]
[334865449,1723612233683,-500.0,0.00015056,2]
[334865450,1723612233693,-807.08,0.00015056,2]
[334865451,1723612233704,-500.0,0.00015056,2]
[334865452,1723612233714,-500.0,0.00015056,2]
[334865453,1723612233727,-500.0,0.00015056,2]
[334865454,1723612233736,-500.0,0.00015056,2]
[334865455,1723612233746,-500.0,0.00015056,2]
[334865456,1723612233756,-569.16,0.00015056,2]
[334865457,1723612233766,-606.05,0.00015056,2]
[334865458,1723612233776,-500.0,0.00015056,2]
[334865459,1723612233786,-559.08051038,0.00015056,2]
[334865460,1723612233796,-500.0,0.00015056,2]
[334865461,1723612233806,-514.79,0.00015056,2]
[334865462,1723612233818,-500.0,0.00015056,2]
[334865463,1723612233828,-500.0,0.00015056,2]
[334865464,1723612233838,-500.0,0.00015056,2]
[334865465,1723612233848,-500.0,0.00015056,2]
[334865466,1723612233858,-500.0,0.00015056,2]
[334865467,1723612233867,-687.73,0.00015056,2]
[334865468,1723612233877,-500.0,0.00015056,2]
[334865469,1723612233887,-580.9,0.00015056,2]
[334865470,1723612233896,-500.0,0.00015056,2]
[334865471,1723612233906,-503.64,0.00015056,2]
[334865472,1723612233916,-500.0,0.00015056,2]
[334865473,1723612233926,-500.0,0.00015056,2]
[334865474,1723612233935,-831.83,0.00015056,2]
[334865475,1723612233944,-500.0,0.00015056,2]
[334865476,1723612233956,-1338.51,0.00015056,2]
[334865477,1723612233965,-1561.44,0.00015056,2]
[334865478,1723612233974,-1064.6,0.00015056,2]
[334865479,1723612233983,-639.96,0.00015056,2]
[334865480,1723612233992,-500.0,0.00015056,2]
[334865481,1723612234002,-545.61,0.00015056,2]
[334865482,1723612234011,-2445.66,0.00015056,2]
[334865483,1723612234020,-500.0,0.00015056,2]
[334865484,1723612234030,-4882.68,0.00015056,2]
[334865485,1723612234039,-678.34,0.00015056,2]
[334865486,1723612234049,-703.28,0.00015056,2]
[334865487,1723612234058,-500.0,0.00015056,2]
[334865488,1723612234068,-500.0,0.00015056,2]
[334865489,1723612234078,-1095.62,0.00015056,2]
[334865490,1723612234087,-1034.22,0.00015056,2]
[334865491,1723612234097,-12475.81,0.00015056,2]
[334865492,1723612234106,-500.0,0.00015056,2]
[334865493,1723612234116,-500.0,0.00015056,2]
[334865494,1723612234125,-629.3,0.00015056,2]
[334865495,1723612234135,-502.35,0.00015056,2]
[334865496,1723612234144,-500.0,0.00015056,2]
[334865497,1723612234154,-516.84,0.00015056,2]
[334865498,1723612234163,-500.0,0.00015056,2]
[334865499,1723612234172,-917.46,0.00015056,2]
[334865500,1723612234181,-500.0,0.00015056,2]
[334865501,1723612234191,-1282.64,0.00015056,2]
[334865502,1723612234200,-511.73,0.00015056,2]
[334865503,1723612234213,-500.0,0.00015056,2]
[334865504,1723612234223,-500.0,0.00015056,2]
[334865505,1723612234232,-3721.62,0.00015056,2]
[334865506,1723612234241,-708.61,0.00015056,2]
[334865507,1723612234250,-500.0,0.00015056,2]
[334865508,1723612234260,-500.0,0.00015056,2]
[334865509,1723612234270,-25153.49,0.00015056,2]
[334865510,1723612234280,-554.36,0.00015056,2]
[334865511,1723612234290,-516.02,0.00015056,2]
[334865512,1723612234299,-500.0,0.00015056,2]
[334865513,1723612234308,-500.0,0.00015056,2]
[334865514,1723612234318,-500.0,0.00015056,2]
[334865515,1723612234327,-500.0,0.00015056,2]
[334865516,1723612234337,-845.91,0.00015056,2]
[334865517,1723612234346,-4382.43,0.00015056,2]
[334865518,1723612234355,-500.0,0.00015056,2]
[334865519,1723612234365,-500.0,0.00015056,2]
[334865520,1723612234375,-769.32,0.00015056,2]
[334865521,1723612234384,-500.0,0.00015056,2]
[334865522,1723612234394,-500.0,0.00015056,2]
[334865523,1723612234403,-526.32,0.00015056,2]
[334865524,1723612234414,-3163.73,0.00015056,2]
[334865525,1723612234423,-1463.47,0.00015056,2]
[334865526,1723612234433,-500.0,0.00015056,2]
[334865527,1723612234443,-605.02,0.00015056,2]
[334865528,1723612234452,-500.0,0.00015056,2]
[334865529,1723612234463,-735.89,0.00015056,2]
[334865530,1723612234472,-1102.03,0.00015056,2]
[334865531,1723612234482,-1319.99,0.00015056,2]
[334865532,1723612234492,-1017.23,0.00015056,2]
[334865533,1723612234501,-833.33,0.00015056,2]
[334865534,1723612234510,-500.0,0.00015056,2]
[334865535,1723612234519,-500.0,0.00015056,2]
[334865536,1723612234529,-500.0,0.00015056,2]
[334865537,1723612234538,-967.11,0.00015056,2]
[334865538,1723612234547,-500.0,0.00015056,2]
[334865539,1723612234557,-500.0,0.00015056,2]
[334865540,1723612234566,-500.0,0.00015056,2]
[334865541,1723612234575,-644.01,0.00015056,2]
[334865542,1723612234585,-500.0,0.00015056,2]
[334865543,1723612234594,-4342.69,0.00015056,2]
[334865544,1723612234603,-500.0,0.00015056,2]
[334865545,1723612234612,-500.0,0.00015056,2]
[334865546,1723612234621,-922.69,0.00015056,2]
[334865547,1723612234630,-1975.85,0.00015056,2]
[334865548,1723612234640,-500.0,0.00015056,2]
[334865549,1723612234649,-500.0,0.00015056,2]
[334865550,1723612234658,-688.76,0.00015056,2]
[334865551,1723612234667,-500.0,0.00015056,2]
[334865552,1723612234677,-500.0,0.00015056,2]
[334865553,1723612234686,-500.0,0.00015056,2]
[334865554,1723612234695,-500.0,0.00015056,2]
[334865555,1723612234703,-500.0,0.00015056,2]
[334865556,1723612234713,-2075.43,0.00015056,2]
[334865557,1723612234723,-749.51,0.00015056,2]
[334865558,1723612234735,-500.0,0.00015056,2]
[334865559,1723612234744,-500.0,0.00015056,2]
[334865560,1723612234753,-500.0,0.00015056,2]
[334865561,1723612234762,-500.0,0.00015056,2]
[334865562,1723612234774,-500.0,0.00015056,2]
[334865563,1723612234783,-500.0,0.00015056,2]
[334865564,1723612234792,-500.0,0.00015056,2]
[334865565,1723612234802,-500.0,0.00015056,2]
[334865566,1723612234811,-846.32,0.00015056,2]
[334865567,1723612234822,-63.95914568,0.00015056,2]
[334865568,1723612234872,-436.04085432,0.00015056,2]
[334865569,1723612234881,-1084.73,0.00015056,2]
[334865570,1723612234891,-500.0,0.00015056,2]
[334865571,1723612234900,-500.0,0.00015056,2]
[334865572,1723612234909,-500.0,0.00015056,2]
[334865573,1723612234918,-500.0,0.00015056,2]
[334865574,1723612234927,-500.0,0.00015056,2]
[334865575,1723612234937,-500.0,0.00015056,2]
[334865576,1723612234946,-4987.8,0.00015056,2]
[334865577,1723612234957,-928.41,0.00015056,2]
[334865578,1723612234966,-500.0,0.00015056,2]
[334865579,1723612234975,-1116.72,0.00015056,2]
[334865580,1723612234984,-500.0,0.00015056,2]
[334865581,1723612234993,-611.95,0.00015056,2]
[334865582,1723612235003,-27.4076909,0.00015056,2]
[334865583,1723612235015,-472.5923091,0.00015056,2]
[334865584,1723612235025,-500.0,0.00015056,2]
[334865585,1723612235034,-1506.23,0.00015056,2]
[334865586,1723612235043,-428.60260026,0.00015056,2]
[334865587,1723612235059,-71.39739974,0.00015056,2]
[334865588,1723612235069,-392.06461,0.00015056,2]
[334865589,1723612235079,-500.0,0.00015056,2]
[334865590,1723612235087,-243.16703654,0.00015056,2]
[334865591,1723612235099,-256.83296346,0.00015056,2]
[334865592,1723612235108,-139.41596143,0.00015056,2]
[334865593,1723612235120,-345.5,0.00015056,2]
[334865594,1723612235132,-15.08403857,0.00015056,2]
[334865595,1723612235141,-500.0,0.00015056,2]
[334865596,1723612235151,-219.52346353,0.00015056,2]
[334865600,1723612237666,-411.94653647,0.00015056,2]
[334865602,1723612237676,-500.0,0.00015056,2]
[334865604,1723612237686,-500.0,0.00015056,2]
[334865605,1723612237695,-500.0,0.00015056,2]
[334865606,1723612237708,-500.0,0.00015056,2]
[334865607,1723612237717,-500.0,0.00015056,2]
[334865608,1723612237731,-699.64,0.00015056,2]
[334865609,1723612237743,-500.0,0.00015056,2]
[334865610,1723612237765,-500.0,0.00015056,2]
[334865611,1723612237781,-2193.25,0.00015056,2]
[334865612,1723612237797,-500.0,0.00015056,2]
[334865613,1723612237816,-500.0,0.00015056,2]
[334865614,1723612237827,-172.11817493,0.00015056,2]
[334865615,1723612237846,-189.03034647,0.00015056,2]
[334865616,1723612237854,-500.0,0.00015056,2]
[334865617,1723612237863,-500.0,0.00015056,2]
[334865618,1723612237883,-602.43,0.00015056,2]
[334865619,1723612237893,-644.45,0.00015056,2]
[334865620,1723612237909,-972.06,0.00015056,2]
[334865621,1723612237918,-500.0,0.00015056,2]
[334865622,1723612237932,-500.0,0.00015056,2]
[334865623,1723612237942,-500.0,0.00015056,2]
[334865624,1723612237951,-500.0,0.00015056,2]
[334865625,1723612237963,-500.0,0.00015056,2]
[334865626,1723612237974,-1649.11,0.00015056,2]
[334865627,1723612237983,-500.0,0.00015056,2]
[334865628,1723612237992,-500.0,0.00015056,2]
[334865629,1723612238001,-500.0,0.00015056,2]
[334865630,1723612238011,-500.0,0.00015056,2]
[334865631,1723612238021,-548.19037023,0.00015056,2]
[334865632,1723612238031,-500.0,0.00015056,2]
[334865633,1723612238040,-500.0,0.00015056,2]
[334865634,1723612238050,-500.0,0.00015056,2]
[334865635,1723612238059,-500.0,0.00015056,2]
[334865636,1723612238074,-500.0,0.00015056,2]
[334865637,1723612238088,-500.0,0.00015056,2]
[334865638,1723612238097,-500.0,0.00015056,2]
[334865639,1723612238107,-500.0,0.00015056,2]
[334865640,1723612238116,-2201.54,0.00015056,2]
[334865641,1723612238126,-4394.16,0.00015056,2]
[334865642,1723612238135,-903.4537301,0.00015056,2]
[334865643,1723612238155,-526.1662699,0.00015056,2]
[334865644,1723612238165,-500.0,0.00015056,2]
[334865645,1723612238174,-521.1,0.00015056,2]
[334865646,1723612238184,-500.0,0.00015056,2]
[334865647,1723612238193,-500.0,0.00015056,2]
[334865648,1723612238203,-500.0,0.00015056,2]
[334865649,1723612238215,-673.87,0.00015056,2]
[334865650,1723612238225,-608.13,0.00015056,2]
[334865651,1723612238234,-500.0,0.00015056,2]
[334865652,1723612238244,-500.0,0.00015056,2]
[334865653,1723612238254,-696.88,0.00015056,2]
[334865654,1723612238263,-500.0,0.00015056,2]
[334865655,1723612238273,-2856.96,0.00015056,2]
[334865656,1723612238282,-500.0,0.00015056,2]
[334865657,1723612238292,-670.56,0.00015056,2]
[334865658,1723612238302,-1175.14,0.00015056,2]
[334865659,1723612238311,-500.0,0.00015056,2]
[334865660,1723612238320,-500.0,0.00015056,2]
[334865661,1723612238329,-1241.16,0.00015056,2]
[334865662,1723612238339,-500.0,0.00015056,2]
[334865663,1723612238349,-3757.01,0.00015056,2]
[334865664,1723612238358,-1065.48,0.00015056,2]
[334865665,1723612238367,-500.0,0.00015056,2]
[334865667,1723612238376,-79.10520611,0.00015056,2]
[334865668,1723612238388,-420.89479389,0.00015056,2]
[334865669,1723612238398,-500.0,0.00015056,2]
[334865670,1723612238408,-500.0,0.00015057,2]
[334865671,1723612238418,-500.0,0.00015057,2]
[334865672,1723612238428,-500.0,0.00015057,2]
[334865673,1723612238437,-629.95,0.00015057,2]
[334865674,1723612238448,-500.0,0.00015057,2]
[334865675,1723612238458,-500.0,0.00015057,2]
[334865676,1723612238468,-500.0,0.00015057,2]
[334865677,1723612238478,-500.0,0.00015057,2]
[334865678,1723612238487,-500.0,0.00015057,2]
[334865679,1723612238497,-562.26,0.00015057,2]
[334865680,1723612238507,-500.0,0.00015057,2]
[334865681,1723612238517,-500.0,0.00015057,2]
[334865682,1723612238527,-500.0,0.00015057,2]
[334865683,1723612238537,-756.09,0.00015057,2]
[334865684,1723612238546,-500.0,0.00015057,2]
[334865685,1723612238556,-500.0,0.00015057,2]
[334865686,1723612238566,-500.0,0.00015057,2]
[334865687,1723612238575,-500.0,0.00015057,2]
[334865688,1723612238585,-500.0,0.00015057,2]
[334865689,1723612238595,-678.86,0.00015057,2]
[334865690,1723612238605,-755.68,0.00015057,2]
[334865691,1723612238615,-746.6,0.00015057,2]
[334865692,1723612238624,-508.64,0.00015057,2]
[334865693,1723612238634,-810.17,0.00015057,2]
[334865694,1723612238644,-500.0,0.00015057,2]
[334865695,1723612238654,-616.3,0.00015057,2]
[334865696,1723612238664,-500.0,0.00015057,2]
[334865697,1723612238675,-500.0,0.00015057,2]
[334865698,1723612238685,-500.0,0.00015057,2]
[334865699,1723612238694,-600.15524961,0.00015057,2]
[334865700,1723612238727,-151.25475039,0.00015057,2]
[334865701,1723612238742,-632.35,0.00015057,2]
[334865702,1723612238751,-282.75909008,0.00015057,2]
[334865703,1723612238849,-217.24090992,0.00015057,2]
[334865704,1723612238859,-446.04613356,0.00015057,2]
[334865705,1723612239071,318.553,0.00014947,2]
[334865707,1723612239758,-500.0,0.00015055,2]
[334865708,1723612239769,-53.95386644,0.00015057,2]
[334865709,1723612239779,-500.0,0.00015057,2]
[334865710,1723612239788,-500.0,0.00015057,2]
[334865711,1723612239798,-1056.54,0.00015057,2]
[334865717,1723612240089,-599.41,0.00015057,2]
[334865719,1723612240100,-500.0,0.00015057,2]
[334865721,1723612240110,-1050.89,0.00015057,2]
[334865723,1723612240120,-318.02301574,0.00015057,2]
[334865725,1723612240131,-500.0,0.00015057,2]
[334865727,1723612240141,-559.83,0.00015057,2]
[334865729,1723612240151,-500.0,0.00015057,2]
[334865731,1723612240160,-500.0,0.00015057,2]
[334865733,1723612240169,-500.0,0.00015057,2]
[334865735,1723612240178,-500.0,0.00015057,2]
[334865737,1723612240188,-500.0,0.00015057,2]
[334865739,1723612240197,-500.0,0.00015057,2]
[334865741,1723612240208,-500.0,0.00015057,2]
[334865743,1723612240219,-500.0,0.00015057,2]
[334865745,1723612240228,-500.0,0.00015057,2]
[334865747,1723612240238,-80.30309,0.00015057,2]
[334865907,1723612243037,7577.72096623,0.000149,2]
[334865911,1723612243051,-500.0,0.00015055,2]
[334865914,1723612243062,-52.6310553,0.00015056,2]
[334865918,1723612243074,-322.32949,0.00015056,2]
[334865921,1723612243086,-1023.82317081,0.00015056,2]
[334865938,1723612244329,-243.71628389,0.00015056,2]
[334865939,1723612244339,-704.56,0.00015056,2]
[334865940,1723612244349,-895.61691,0.00015057,2]
[334865941,1723612244359,-500.0,0.00015057,2]
[334865942,1723612244369,-500.0,0.00015057,2]
[334865943,1723612244378,-263.23113359,0.00015057,2]
[334865944,1723612244390,-286.64641247,0.00015057,2]
[334865945,1723612244401,-272.75965354,0.00015057,2]
[334865946,1723612244412,-227.24034646,0.00015057,2]
[334865947,1723612244490,-500.0,0.00015057,2]
[334865948,1723612244501,-500.0,0.00015057,2]
[334865949,1723612244510,-500.0,0.00015057,2]
[334865950,1723612244520,-500.0,0.00015057,2]
[334865951,1723612244530,-376.58223532,0.00015057,2]
[334865952,1723612244540,-500.0,0.00015057,2]
[334865953,1723612244549,-500.0,0.00015057,2]
[334865954,1723612244559,-629.07,0.00015057,2]
[334865955,1723612244569,-500.0,0.00015057,2]
[334865956,1723612244578,-500.0,0.00015057,2]
[334865957,1723612244587,-249.69254866,0.00015057,2]
[334865958,1723612244599,-250.30745134,0.00015057,2]
[334865959,1723612244608,-500.0,0.00015057,2]
[334865960,1723612244617,-500.0,0.00015057,2]
[334865961,1723612244626,-500.0,0.00015057,2]
[334865962,1723612244636,-500.0,0.00015057,2]
[334865963,1723612244645,-500.0,0.00015057,2]
[334865964,1723612244655,-500.0,0.00015057,2]
[334865965,1723612244664,-500.0,0.00015057,2]
[334865966,1723612244673,-500.0,0.00015057,2]
[334865967,1723612244683,-585.24,0.00015057,2]
[334865968,1723612244693,-500.0,0.00015057,2]
[334865969,1723612244702,-500.0,0.00015057,2]
[334865970,1723612244713,-532.74,0.00015057,2]
[334865971,1723612244723,-600.83362097,0.00015057,2]
[334865972,1723612244733,-532.85,0.00015057,2]
[334865973,1723612244743,-585.3,0.00015057,2]
[334865974,1723612244753,-125.05628488,0.00015057,2]
[334865975,1723612244764,-374.94371512,0.00015057,2]
[334865976,1723612244774,-500.0,0.00015057,2]
[334865977,1723612244784,-507.59,0.00015057,2]
[334865978,1723612244793,-500.0,0.00015057,2]
[334865979,1723612244802,-500.0,0.00015057,2]
[334865980,1723612244813,-500.0,0.00015057,2]
[334865981,1723612244822,-643.37,0.00015057,2]
[334865982,1723612244831,-500.0,0.00015057,2]
[334865983,1723612244840,-739.28,0.00015057,2]
[334865984,1723612244850,-500.0,0.00015057,2]
[334865985,1723612244859,-447.41628488,0.00015057,2]
[334865986,1723612244871,-52.58371512,0.00015057,2]
[334865987,1723612244880,-500.0,0.00015057,2]
[334865988,1723612244889,-110.66978227,0.00015057,2]
[334865991,1723612245715,-500.0,0.00015056,2]
[334865992,1723612245725,-389.33021773,0.00015057,2]
[334865993,1723612245738,-500.0,0.00015057,2]
[334865994,1723612245748,-500.0,0.00015057,2]
[334865995,1723612245759,-500.0,0.00015057,2]
[334865996,1723612245769,-500.0,0.00015057,2]
[334865997,1723612245778,-500.0,0.00015057,2]
[334865998,1723612245787,-500.0,0.00015057,2]
[334865999,1723612245797,-500.0,0.00015057,2]
[334866000,1723612245808,-500.0,0.00015057,2]
[334866001,1723612245819,-500.0,0.00015057,2]
[334866002,1723612245828,-500.0,0.00015057,2]
[334866003,1723612245836,-500.0,0.00015057,2]
[334866004,1723612245845,-634.18,0.00015057,2]
[334866005,1723612245856,-500.0,0.00015057,2]
[334866006,1723612245866,-500.0,0.00015057,2]
[334866007,1723612245875,-500.0,0.00015057,2]
[334866008,1723612245885,-500.0,0.00015057,2]
[334866009,1723612245894,-500.0,0.00015057,2]
[334866010,1723612245903,-500.0,0.00015057,2]
[334866011,1723612245912,-500.0,0.00015057,2]
[334866012,1723612245921,-500.0,0.00015057,2]
[334866013,1723612245932,-500.0,0.00015057,2]
[334866014,1723612245942,-500.0,0.00015057,2]
[334866015,1723612245951,-500.0,0.00015057,2]
[334866016,1723612245960,-500.0,0.00015057,2]
[334866017,1723612245970,-500.0,0.00015057,2]
[334866018,1723612245979,-530.96,0.00015057,2]
[334866019,1723612245988,-500.0,0.00015057,2]
[334866020,1723612245999,-500.0,0.00015057,2]
[334866021,1723612246009,-644.39,0.00015057,2]
[334866022,1723612246019,-500.0,0.00015057,2]
[334866023,1723612246030,-500.0,0.00015057,2]
[334866024,1723612246040,-500.0,0.00015057,2]
[334866025,1723612246050,-992.52,0.00015057,2]
[334866026,1723612246059,-515.95,0.00015057,2]
[334866027,1723612246069,-500.0,0.00015057,2]
[334866028,1723612246078,-500.0,0.00015057,2]
[334866029,1723612246087,-500.0,0.00015057,2]
[334866030,1723612246096,-500.0,0.00015057,2]
[334866031,1723612246105,-500.0,0.00015057,2]
[334866032,1723612246114,-568.87,0.00015057,2]
[334866033,1723612246123,-500.0,0.00015057,2]
[334866034,1723612246132,-500.0,0.00015057,2]
[334866035,1723612246141,-500.0,0.00015057,2]
[334866036,1723612246150,-500.0,0.00015057,2]
[334866037,1723612246159,-500.0,0.00015057,2]
[334866038,1723612246169,-500.0,0.00015057,2]
[334866039,1723612246178,-500.0,0.00015057,2]
[334866040,1723612246187,-500.0,0.00015057,2]
[334866041,1723612246197,-739.17,0.00015057,2]
[334866042,1723612246208,-500.0,0.00015057,2]
[334866043,1723612246218,-537.35,0.00015057,2]
[334866044,1723612246227,-500.0,0.00015057,2]
[334866045,1723612246236,-500.0,0.00015057,2]
[334866046,1723612246247,-150.0,0.0001506,2]
[334866047,1723612246255,-150.0,0.00015065,2]
[334866048,1723612246264,-499.99,0.00015065,2]
[334866049,1723612246278,-150.0,0.00015086,2]
[334866050,1723612246289,-150.0,0.00015086,2]
[334866051,1723612246298,-150.0,0.00015105,2]
[334866052,1723612246308,-209.44699376,0.00015117,2]
[334866053,1723612246317,-150.0,0.00015129,2]
[334866054,1723612246327,-150.0,0.00015132,2]
[334866055,1723612246336,-150.0,0.00015133,2]
[334866056,1723612246345,-150.99,0.00015133,2]
[334866057,1723612246355,-150.0,0.00015169,2]
[334866058,1723612246365,-150.0,0.00015169,2]
[334866059,1723612246375,-150.0,0.00015188,2]
[334866060,1723612246384,-4179.59118583,0.0001519,2]
[334866061,1723612246409,-470.08,0.0001519,2]
[334866062,1723612246420,-1462.76416002,0.0001519,2]
[334866063,1723612246432,-3896.83603335,0.0001519,2]
[334866064,1723612246441,-3363.4054,0.00015231,2]
[334866065,1723612246451,-2018.0839,0.00015231,2]
[334866066,1723612246460,-432.14474,0.0001524,2]
[334866067,1723612246473,-432.14474,0.0001524,2]
[334866068,1723612246483,-150.0,0.00015243,2]
[334866069,1723612246492,-150.0,0.00015246,2]
[334866070,1723612246501,-150.0,0.00015255,2]
[334866071,1723612246510,-432.14474,0.0001528,2]
[334866072,1723612246519,-823.69,0.000153,3]
[334866073,1723612246528,-150.0,0.00015301,2]
[334866074,1723612246538,-2238.92624754,0.0001531,2]
[334866075,1723612246549,-1313.87865291,0.0001531,2]
[334866076,1723612246559,-11173.27156439,0.0001531,2]
[334866077,1723612246571,-287.83060396,0.0001531,2]
[334866078,1723612246580,-1776.56165121,0.00015311,2]
[334866079,1723612250658,3747.42584614,0.00012996,2]
[334866080,1723612252635,41783.51154298,0.00014988,2]
[334866081,1723612255883,3942.72785414,0.00012996,2]
[334866082,1723612260498,5006.41141762,0.00012996,2]
[334866083,1723612268269,221.26759423,0.00015,2]
[334866084,1723612304341,341.0965428,0.00015,4]
[334866085,1723612316904,155.0,0.00014999,2]
[334866087,1723612328922,3329.8603,0.00014956,2]
[334866088,1723612347520,500.0,0.00014956,2]
[334866089,1723612354389,177.62,0.00014436,2]
[334866090,1723612382824,6023.36271218,0.00014954,2]
[334866091,1723612399091,155.62,0.00014431,2]
[334866092,1723612419729,485.8,0.00014389,2]
[334866095,1723612429953,250.0,0.00014389,2]
[334866096,1723612464192,1042.07491144,0.00014988,2]
[334866097,1723612487706,150.0,0.00014416,2]
[334866098,1723612487731,23.85,0.00014416,2]
[334866099,1723612510366,126.15,0.00012498,2]
[334866100,1723612510387,150.0,0.00012498,2]
[334866101,1723612510408,150.0,0.00012498,2]
[334866102,1723612510428,98.74,0.00012498,2]
[334866103,1723612510669,51.26,0.00014762,2]
[334866104,1723612510694,150.0,0.00014762,2]
[334866105,1723612510733,323.63,0.00014762,2]
[334866106,1723612512644,183747.90868683,0.00014416,2]
[334866107,1723612535805,227.80268088,0.00014416,2]
[334866108,1723612537133,3070.25593273,0.00014416,2]
[334866109,1723612540416,154.456777,0.00013698,2]
[334866110,1723612540732,154.456777,0.00013972,2]
[334866111,1723612541165,154.456777,0.00014246,2]
[334866112,1723612541210,156.241626,0.00013698,2]
[334866113,1723612541499,154.456777,0.0001452,2]
[334866114,1723612541609,156.241626,0.00013972,2]